[Event "9th Amsterdam Science Park A 2019"]
[Site "Amsterdam"]
[Date "2019.07.09"]
[Round "4.5"]
[White "Van Baar, Esper"]
[Black "Ulybin, Mikhail"]
[Result "0-1"]
[ECO "C06"]
[WhiteElo "2108"]
[BlackElo "2469"]
[Annotator "ChessBase"]
[PlyCount "156"]
[EventDate "2019.07.06"]
[EventType "swiss"]
[EventCountry "NED"]
[SourceTitle "playchess.com"]
[Source "ChessBase"]
[SourceQuality "1"]
[TimeControl "40/5400+30:1800+30"]

1. e4 {[%emt 0:00:00]} e6 {[%emt 0:08:55]} 2. d4 {[%emt 0:00:00]} d5 {[%emt 0:01:00]} 3. Nd2 {[%emt 0:00:06]} Nf6 {[%emt 0:01:03]} 4. e5 {[%emt 0:00:14]} Nfd7 {[%emt 0:00:53]} 5. Bd3 {[%emt 0:00:25]} c5 {[%emt 0:00:47]} 6. c3 {[%emt 0:00:12]} Nc6 {[%emt 0:00:50]} 7. Ne2 {[%emt 0:00:24]} cxd4 {[%emt 0:00:54]} 8. cxd4 {[%emt 0:00:06]} f6 {[%emt 0:01:50]} 9. exf6 {[%emt 0:00:21]} Nxf6 {[%emt 0:01:10]} 10. O-O {[%emt 0:00:14]} Bd6 {[%emt 0:00:47]} 11. Nf3 {[%emt 0:00:19]} O-O {[%emt 0:02:32]} 12. Bf4 {[%emt 0:01:13]} Bxf4 {[%emt 0:00:47]} 13. Nxf4 {[%emt 0:00:04]} Ng4 {[%emt 0:02:17]} 14. Qd2 {[%emt 0:01:08]} Qf6 {[%emt 0:14:29]} 15. Nh5 {[%emt 0:04:14]} Qh6 {[%emt 0:02:32]} 16. Qxh6 {[%emt 0:00:55]} Nxh6 {[%emt 0:00:57]} 17. Ng3 {[%emt 0:01:45]} a6 {[%emt 0:17:46]} 18. Rad1 {[%emt 0:02:01]} Nf7 {[%emt 0:06:10]} 19. Rfe1 {[%emt 0:04:05]} Bd7 {[%emt 0:00:51]} 20. Ne2 {[%emt 0:09:59]} Rac8 {[%emt 0:08:51]} 21. Nc3 {[%emt 0:04:16]} Na5 {[%emt 0:07:32]} 22. Rc1 {[%emt 0:03:27]} Rc6 {[%emt 0:06:52]} 23. Ne2 {[%emt 0:03:05]} Rfc8 {[%emt 0:02:24]} 24. Rxc6 {[%emt 0:01:33]} Nxc6 {[%emt 0:02:43]} 25. Rc1 {[%emt 0:06:52]} g6 {[%emt 0:01:32]} 26. h4 {[%emt 0:01:53]} Kg7 {[%emt 0:00:58]} 27. Rc3 {[%emt 0:06:09]} Kf6 {[%emt 0:00:54]} 28. Nf4 {[%emt 0:05:14]} Nd6 {[%emt 0:03:17]} 29. g4 {[%emt 0:02:59]} Ke7 {[%emt 0:02:03]} 30. Kg2 {[%emt 0:08:13]} Nf7 {[%emt 0:00:33]} 31. Kg3 {[%emt 0:01:37]} Kd6 {[%emt 0:00:30]} 32. g5 {[%emt 0:04:32]} e5 {[%emt 0:00:31]} 33. dxe5+ {[%emt 0:01:41]} Ncxe5 {[%emt 0:00:36]} 34. Rxc8 {[%emt 0:04:05]} Bxc8 {[%emt 0:00:09]} 35. Nxe5 {[%emt 0:00:13]} Nxe5 {[%emt 0:00:47]} 36. Bc2 {[%emt 0:01:12]} Bd7 {[%emt 0:00:40]} 37. Ne2 {[%emt 0:05:49]} Nc6 {[%emt 0:00:33]} 38. f4 {[%emt 0:01:21]} Ne7 {[%emt 0:00:24]} 39. Kf3 {[%emt 0:02:52]} Bf5 {[%emt 0:00:26]} 40. Bb3 {[%emt 0:04:43]} Be4+ {[%emt 0:00:33]} 41. Kg4 {[%emt 0:33:26]} Nf5 {[%emt 0:04:24]} 42. Ng3 {[%emt 0:00:00]} Nxg3 {[%emt 0:17:56]} 43. Kxg3 {[%emt 0:00:00]} Kc5 {[%emt 0:00:30]} 44. Kf2 {[%emt 0:00:00]} Kd4 {[%emt 0:00:37]} 45. Ke2 {[%emt 0:00:00]} Bf5 {[%emt 0:03:11]} 46. Kf3 {[%emt 0:00:00]} a5 {[%emt 0:01:52]} 47. a3 {[%emt 0:00:00]} b6 {[%emt 0:00:48]} 48. a4 {[%emt 0:04:15]} Be4+ {[%emt 0:03:05]} 49. Ke2 {[%emt 0:00:51]} Bb1 {[%emt 0:00:25]} 50. Kf3 {[%emt 0:00:32]} Bf5 {[%emt 0:00:19]} 51. Kf2 {[%emt 0:06:15]} Ke4 {[%emt 0:00:46]} 52. Kg3 {[%emt 0:00:38]} d4 {[%emt 0:00:31]} 53. Bg8 {[%emt 0:00:30]} d3 {[%emt 0:01:03]} 54. Kf2 {[%emt 0:00:29]} Bg4 {[%emt 0:00:53]} 55. Bxh7 {[%emt 0:00:23]} d2 {[%emt 0:00:57]} 56. Bxg6+ {[%emt 0:00:03]} Kxf4 {[%emt 0:00:14]} 57. Bc2 {[%emt 0:00:15]} d1=Q {[%emt 0:00:28]} 58. Bxd1 {[%emt 0:00:05]} Bxd1 {[%emt 0:00:10]} 59. Ke1 {[%emt 0:01:40]} Bxa4 {[%emt 0:00:33]} 60. Kd2 {[%emt 0:00:35]} Be8 {[%emt 0:00:47]} 61. Kc3 {[%emt 0:00:19]} Kg4 {[%emt 0:00:36]} 62. Kc4 {[%emt 0:00:31]} Kxh4 {[%emt 0:00:57]} 63. g6 {[%emt 0:00:13]} Bxg6 {[%emt 0:00:32]} 64. Kb5 {[%emt 0:00:13]} Bc2 {[%emt 0:00:30]} 65. Kxb6 {[%emt 0:00:17]} a4 {[%emt 0:00:03]} 66. Ka5 {[%emt 0:00:12]} Kg3 {[%emt 0:00:21]} 67. Kb4 {[%emt 0:00:21]} Kf3 {[%emt 0:00:39]} 68. Kc3 {[%emt 0:00:37]} Bb3 {[%emt 0:00:48]} 69. Kd3 {[%emt 0:00:45]} Kf4 {[%emt 0:00:27]} 70. Kd4 {[%emt 0:00:45]} Kf5 {[%emt 0:00:21]} 71. Kd3 {[%emt 0:00:29]} Ke5 {[%emt 0:00:16]} 72. Kd2 {[%emt 0:00:55]} Kd4 {[%emt 0:01:00]} 73. Kc1 {[%emt 0:00:03]} Ba2 {[%emt 0:00:13]} 74. Kd2 {[%emt 0:00:56]} Kc4 {[%emt 0:00:48]} 75. Kc2 {[%emt 0:00:29]} Kb4 {[%emt 0:00:15]} 76. Kd2 {[%emt 0:00:05]} Bb1 {[%emt 0:00:39]} 77. Kc1 {[%emt 0:01:08]} Be4 {[%emt 0:00:15]} 78. Kd2 {[%emt 0:00:42]} Kb3 {[%emt 0:00:13]} 0-1

[Event "9th Amsterdam Science Park A 2019"]
[Site "Amsterdam"]
[Date "2019.07.09"]
[Round "4.6"]
[White "De Groote, Ewoud"]
[Black "Baarslag, Ed"]
[Result "1-0"]
[ECO "B18"]
[WhiteElo "2225"]
[BlackElo "2220"]
[Annotator "NA"]
[PlyCount "67"]
[EventDate "2019.07.06"]
[EventType "swiss"]
[EventCountry "NED"]
[SourceTitle "playchess.com"]
[Source "ChessBase"]
[SourceQuality "1"]
[TimeControl "40/5400+30:1800+30"]

1. e4 {[%emt 0:00:00]} c6 {[%emt 0:00:11]} 2. d4 {[%emt 0:00:00]} d5 {[%emt 0:00:22]} 3. Nd2 {[%emt 0:00:00]} dxe4 {[%emt 0:00:32]} 4. Nxe4 {[%emt 0:00:00]} Bf5 {[%emt 0:00:24]} 5. Ng3 {[%emt 0:00:00]} Bg6 {[%emt 0:00:07]} 6. h4 {[%emt 0:00:00]} h6 {[%emt 0:00:10]} 7. Nf3 {[%emt 0:00:00]} e6 {[%emt 0:01:03]} 8. h5 {[%emt 0:02:56]} Bh7 {[%emt 0:00:07]} 9. Bd3 {[%emt 0:00:02]} Bxd3 {[%emt 0:00:15]} 10. Qxd3 {[%emt 0:00:02]} Nf6 {[%emt 0:00:37]} 11. Bd2 {[%emt 0:01:49]} Be7 {[%emt 0:00:47]} 12. O-O-O {[%emt 0:01:35]} O-O {[%emt 0:02:04]} 13. Kb1 {[%emt 0:02:12]} c5 {[%emt 0:01:31]} 14. Ne4 {[%emt 0:12:07]} Nc6 {[%emt 0:08:25]} 15. Nxf6+ {[%emt 0:03:11]} Bxf6 {[%emt 0:00:46]} 16. dxc5 {[%emt 0:00:32]} Qxd3 {[%emt 0:09:12]} 17. cxd3 {[%emt 0:00:29]} Rfd8 {[%emt 0:00:46]} 18. Bf4 {[%emt 0:16:25]} e5 {[%emt 0:04:29]} 19. Be3 {[%emt 0:00:04]} Rd5 {[%emt 0:00:35]} 20. Nd2 {[%emt 0:08:44]} Be7 {[%emt 0:11:25]} 21. g4 {[%emt 0:18:23]} f6 {[%emt 0:15:55]} 22. Ne4 {[%emt 0:00:41]} Rc8 {[%emt 0:03:55]} 23. a3 {[%emt 0:02:11]} a5 {[%emt 0:00:53]} 24. Rd2 {[%emt 0:04:24]} Nd4 {[%emt 0:08:37]} 25. Bxd4 {[%emt 0:02:03]} Rxd4 {[%emt 0:00:07]} 26. Rc1 {[%emt 0:06:22]} Kf7 {[%emt 0:08:05]} 27. Rc4 {[%emt 0:00:22]} Ke6 {[%emt 0:01:47]} 28. Rxd4 {[%emt 0:03:18]} exd4 {[%emt 0:00:40]} 29. Rc2 {[%emt 0:02:08]} Kd5 {[%emt 0:02:35]} 30. b4 {[%emt 0:00:28]} a4 {[%emt 0:04:31]} 31. Ng3 {[%emt 0:00:54]} Bd8 {[%emt 0:04:20]} 32. Nf5 {[%emt 0:00:17]} Rc7 {[%emt 0:00:23]} 33. Rc4 {[%emt 0:00:22]} b6 {[%emt 0:00:31]} 34. Rxd4+ {[%emt 0:00:13]} 1-0

[Event "9th Amsterdam Science Park A 2019"]
[Site "Amsterdam"]
[Date "2019.07.09"]
[Round "4.7"]
[White "Smirnova, Ekaterina"]
[Black "De Rover, Yong Hoon"]
[Result "1-0"]
[ECO "D43"]
[WhiteElo "2184"]
[BlackElo "2391"]
[Annotator "NA"]
[PlyCount "117"]
[EventDate "2019.07.06"]
[EventType "swiss"]
[EventCountry "NED"]
[SourceTitle "playchess.com"]
[Source "ChessBase"]
[SourceQuality "1"]
[TimeControl "40/5400+30:1800+30"]

1. d4 {[%emt 0:00:00]} Nf6 {[%emt 0:00:44]} 2. c4 {[%emt 0:00:00]} e6 {[%emt 0:00:31]} 3. Nf3 {[%emt 0:00:00]} d5 {[%emt 0:00:30]} 4. Nc3 {[%emt 0:00:30]} c6 {[%emt 0:00:17]} 5. cxd5 {[%emt 0:01:27]} exd5 {[%emt 0:01:16]} 6. Bg5 {[%emt 0:00:57]} h6 {[%emt 0:05:09]} 7. Bh4 {[%emt 0:01:30]} Nbd7 {[%emt 0:00:25]} 8. e3 {[%emt 0:00:07]} g5 {[%emt 0:01:35]} 9. Bg3 {[%emt 0:00:06]} Nh5 {[%emt 0:00:15]} 10. Bd3 {[%emt 0:01:34]} Nxg3 {[%emt 0:00:36]} 11. hxg3 {[%emt 0:00:01]} Bg7 {[%emt 0:00:16]} 12. Bc2 {[%emt 0:01:19]} Qe7 {[%emt 0:08:08]} 13. Qd3 {[%emt 0:02:09]} Nb6 {[%emt 0:03:18]} 14. O-O-O {[%emt 0:04:34]} Be6 {[%emt 0:04:16]} 15. Nd2 {[%emt 0:12:02]} O-O-O {[%emt 0:00:34]} 16. Nb3 {[%emt 0:00:24]} Kb8 {[%emt 0:01:15]} 17. Nc5 {[%emt 0:01:00]} Bc8 {[%emt 0:00:34]} 18. Kb1 {[%emt 0:06:19]} f5 {[%emt 0:07:22]} 19. b3 {[%emt 0:12:39]} h5 {[%emt 0:08:17]} 20. a4 {[%emt 0:04:06]} Nd7 {[%emt 0:05:48]} 21. Nxd7+ {[%emt 0:01:17]} Bxd7 {[%emt 0:00:19]} 22. Ka2 {[%emt 0:00:18]} Qd6 {[%emt 0:01:49]} 23. Qe2 {[%emt 0:05:44]} Qg6 {[%emt 0:14:21]} 24. Rh2 {[%emt 0:07:59]} Be8 {[%emt 0:09:51]} 25. Qd3 {[%emt 0:04:14]} Rf8 {[%emt 0:00:32]} 26. Ne2 {[%emt 0:02:02]} Qd6 {[%emt 0:02:49]} 27. Rhh1 {[%emt 0:01:20]} Bf6 {[%emt 0:00:50]} 28. Rb1 {[%emt 0:01:17]} Be7 {[%emt 0:01:27]} 29. b4 {[%emt 0:00:08]} Ka8 {[%emt 0:00:17]} 30. Qb3 {[%emt 0:05:50]} Rc8 {[%emt 0:03:34]} 31. Bd3 {[%emt 0:00:42]} Qf6 {[%emt 0:01:25]} 32. Rhc1 {[%emt 0:04:10]} Bf7 {[%emt 0:01:34]} 33. a5 {[%emt 0:01:29]} a6 {[%emt 0:01:07]} 34. Qc2 {[%emt 0:00:45]} Be6 {[%emt 0:00:32]} 35. Nc3 {[%emt 0:00:53]} f4 {[%emt 0:01:42]} 36. Na4 {[%emt 0:01:08]} Rcd8 {[%emt 0:01:13]} 37. Bxa6 {[%emt 0:02:00]} Bf5 {[%emt 0:00:30]} 38. Bd3 {[%emt 0:01:03]} Bxd3 {[%emt 0:00:50]} 39. Qxd3 {[%emt 0:00:01]} fxg3 {[%emt 0:00:11]} 40. fxg3 {[%emt 0:00:22]} Qd6 {[%emt 0:03:52]} 41. Rb2 {[%emt 0:32:01]} Rf6 {[%emt 0:31:08]} 42. Nb6+ {[%emt 0:02:49]} Ka7 {[%emt 0:00:36]} 43. b5 {[%emt 0:00:49]} Qxg3 {[%emt 0:05:14]} 44. bxc6 {[%emt 0:00:48]} bxc6 {[%emt 0:00:41]} 45. Qb3 {[%emt 0:02:52]} Qb8 {[%emt 0:02:35]} 46. Qa4 {[%emt 0:01:10]} Qc7 {[%emt 0:00:00]} 47. Rbc2 {[%emt 0:00:00]} Rdd6 {[%emt 0:00:00]} 48. e4 {[%emt 0:00:00]} dxe4 {[%emt 0:00:00]} 49. d5 {[%emt 0:00:00]} Bd8 {[%emt 0:00:00]} 50. Qxe4 {[%emt 0:00:00]} Kb7 {[%emt 0:00:00]} 51. Qb4 {[%emt 0:00:00]} Ka7 {[%emt 0:00:00]} 52. Qc5 {[%emt 0:00:00]} cxd5 {[%emt 0:00:27]} 53. Qxc7+ {[%emt 0:00:00]} Bxc7 {[%emt 0:00:08]} 54. Rxc7+ {[%emt 0:00:00]} Ka6 {[%emt 0:00:27]} 55. Nc8 {[%emt 0:00:00]} Rde6 {[%emt 0:00:33]} 56. Rb1 {[%emt 0:03:31]} Kxa5 {[%emt 0:01:41]} 57. Rc5+ {[%emt 0:02:00]} Ka4 {[%emt 0:01:38]} 58. Rb2 {[%emt 0:01:53]} Rc6 {[%emt 0:01:06]} 59. Rcb5 {[%emt 0:01:32]} 1-0

[Event "9th Amsterdam Science Park A 2019"]
[Site "Amsterdam"]
[Date "2019.07.09"]
[Round "4.8"]
[White "Floor, Dirk"]
[Black "De Ruiter, Danny"]
[Result "0-1"]
[ECO "A05"]
[WhiteElo "2184"]
[BlackElo "2310"]
[Annotator "NA"]
[PlyCount "98"]
[EventDate "2019.07.06"]
[EventType "swiss"]
[EventCountry "NED"]
[SourceTitle "playchess.com"]
[Source "ChessBase"]
[SourceQuality "1"]
[TimeControl "40/5400+30:1800+30"]

1. Nf3 {[%emt 0:00:00]} Nf6 {[%emt 0:00:00]} 2. g3 {[%emt 0:00:00]} e6 {[%emt 0:02:52]} 3. Bg2 {[%emt 0:00:31]} d5 {[%emt 0:01:18]} 4. d4 {[%emt 0:02:09]} c5 {[%emt 0:05:47]} 5. c4 {[%emt 0:03:12]} dxc4 {[%emt 0:05:08]} 6. O-O {[%emt 0:06:43]} Nc6 {[%emt 0:03:04]} 7. dxc5 {[%emt 0:01:11]} Qxd1 {[%emt 0:00:57]} 8. Rxd1 {[%emt 0:00:02]} Bxc5 {[%emt 0:00:12]} 9. Nbd2 {[%emt 0:00:21]} c3 {[%emt 0:20:08]} 10. bxc3 {[%emt 0:00:23]} O-O {[%emt 0:00:06]} 11. Nb3 {[%emt 0:00:42]} Be7 {[%emt 0:01:38]} 12. c4 {[%emt 0:03:18]} Bd7 {[%emt 0:05:29]} 13. Bb2 {[%emt 0:05:11]} Rfd8 {[%emt 0:01:09]} 14. Nfd4 {[%emt 0:08:23]} Rac8 {[%emt 0:02:11]} 15. Nb5 {[%emt 0:04:19]} Be8 {[%emt 0:02:33]} 16. c5 {[%emt 0:04:52]} Nb4 {[%emt 0:03:36]} 17. Nd6 {[%emt 0:04:09]} Bxd6 {[%emt 0:03:25]} 18. cxd6 {[%emt 0:01:19]} Bc6 {[%emt 0:00:31]} 19. Bxf6 {[%emt 0:04:43]} gxf6 {[%emt 0:01:01]} 20. Rd4 {[%emt 0:02:17]} Nc2 {[%emt 0:06:36]} 21. Rg4+ {[%emt 0:00:31]} Kf8 {[%emt 0:00:08]} 22. Rd1 {[%emt 0:01:35]} Bxg2 {[%emt 0:03:11]} 23. Kxg2 {[%emt 0:00:20]} b6 {[%emt 0:03:36]} 24. Rh4 {[%emt 0:06:00]} Kg7 {[%emt 0:00:40]} 25. Ra4 {[%emt 0:08:20]} a5 {[%emt 0:00:43]} 26. Nd4 {[%emt 0:01:50]} Nb4 {[%emt 0:03:55]} 27. a3 {[%emt 0:03:07]} Nd5 {[%emt 0:00:16]} 28. Nf5+ {[%emt 0:01:30]} Kf8 {[%emt 0:01:46]} 29. Rxd5 {[%emt 0:08:18]} exd5 {[%emt 0:00:34]} 30. Rh4 {[%emt 0:00:11]} Ke8 {[%emt 0:02:24]} 31. Rxh7 {[%emt 0:03:59]} Kd7 {[%emt 0:00:44]} 32. g4 {[%emt 0:01:38]} Ke6 {[%emt 0:01:54]} 33. Rh3 {[%emt 0:00:18]} Rc4 {[%emt 0:00:06]} 34. Re3+ {[%emt 0:04:21]} Re4 {[%emt 0:00:38]} 35. Rg3 {[%emt 0:04:40]} b5 {[%emt 0:01:31]} 36. h3 {[%emt 0:01:16]} b4 {[%emt 0:01:00]} 37. axb4 {[%emt 0:00:26]} axb4 {[%emt 0:00:08]} 38. Rb3 {[%emt 0:02:02]} Rb8 {[%emt 0:00:05]} 39. Kg3 {[%emt 0:02:08]} Kd7 {[%emt 0:01:09]} 40. e3 {[%emt 0:02:01]} Rc4 {[%emt 0:00:05]} 41. Kf3 {[%emt 0:31:42]} Rc3 {[%emt 0:39:05]} 42. Rb2 {[%emt 0:00:00]} b3 {[%emt 0:00:00]} 43. Nd4 {[%emt 0:00:00]} Kxd6 {[%emt 0:00:00]} 44. Ke2 {[%emt 0:00:00]} Kc5 {[%emt 0:00:00]} 45. h4 {[%emt 0:00:00]} Kc4 {[%emt 0:00:00]} 46. h5 {[%emt 0:00:00]} Rc1 {[%emt 0:00:00]} 47. Kd2 {[%emt 0:00:00]} Rg1 {[%emt 0:00:00]} 48. Nf5 {[%emt 0:00:00]} Ra8 {[%emt 0:00:00]} 49. Nd6+ {[%emt 0:00:00]} Kb4 {[%emt 0:00:00]} 0-1

[Event "9th Amsterdam Science Park A 2019"]
[Site "Amsterdam"]
[Date "2019.07.09"]
[Round "4.9"]
[White "Wunnink, Michael"]
[Black "De Jong, Tom"]
[Result "1/2-1/2"]
[ECO "A49"]
[WhiteElo "2214"]
[BlackElo "2176"]
[Annotator "NA"]
[PlyCount "52"]
[EventDate "2019.07.06"]
[EventType "swiss"]
[EventCountry "NED"]
[SourceTitle "playchess.com"]
[Source "ChessBase"]
[SourceQuality "1"]
[TimeControl "40/5400+30:1800+30"]

1. d4 {[%emt 0:00:00]} Nf6 {[%emt 0:00:00]} 2. Nf3 {[%emt 0:00:00]} g6 {[%emt 0:00:00]} 3. g3 {[%emt 0:00:00]} Bg7 {[%emt 0:00:06]} 4. Bg2 {[%emt 0:00:00]} O-O {[%emt 0:00:08]} 5. O-O {[%emt 0:00:04]} d6 {[%emt 0:00:05]} 6. b3 {[%emt 0:00:13]} c5 {[%emt 0:05:55]} 7. Bb2 {[%emt 0:00:44]} cxd4 {[%emt 0:00:50]} 8. Nxd4 {[%emt 0:00:13]} d5 {[%emt 0:01:09]} 9. c4 {[%emt 0:00:21]} dxc4 {[%emt 0:10:50]} 10. bxc4 {[%emt 0:00:10]} Nc6 {[%emt 0:18:57]} 11. Nxc6 {[%emt 0:18:20]} bxc6 {[%emt 0:00:20]} 12. Nd2 {[%emt 0:02:05]} Qc7 {[%emt 0:13:17]} 13. Qa4 {[%emt 0:06:59]} Bd7 {[%emt 0:03:17]} 14. Nb3 {[%emt 0:08:34]} Rab8 {[%emt 0:03:56]} 15. Bc3 {[%emt 0:04:21]} c5 {[%emt 0:08:40]} 16. Qa3 {[%emt 0:03:58]} Rfc8 {[%emt 0:00:49]} 17. Rad1 {[%emt 0:16:35]} Be6 {[%emt 0:04:51]} 18. Qc1 {[%emt 0:00:31]} Nd7 {[%emt 0:00:51]} 19. Bxg7 {[%emt 0:04:43]} Kxg7 {[%emt 0:00:13]} 20. Bd5 {[%emt 0:02:15]} Bh3 {[%emt 0:04:05]} 21. Rfe1 {[%emt 0:00:24]} Nf6 {[%emt 0:01:50]} 22. Qc3 {[%emt 0:02:00]} Kg8 {[%emt 0:00:38]} 23. Bf3 {[%emt 0:01:34]} Be6 {[%emt 0:01:43]} 24. e4 {[%emt 0:04:11]} Rb4 {[%emt 0:02:42]} 25. Nd2 {[%emt 0:02:51]} Qd8 26. Ra1 Ra8 1/2-1/2

[Event "9th Amsterdam Science Park A 2019"]
[Site "Amsterdam"]
[Date "2019.07.09"]
[Round "4.10"]
[White "Keuning, Selwin"]
[Black "Luberti, W.."]
[Result "1/2-1/2"]
[ECO "B06"]
[WhiteElo "2078"]
[BlackElo "2201"]
[Annotator "NA"]
[PlyCount "156"]
[EventDate "2019.07.06"]
[EventType "swiss"]
[EventCountry "NED"]
[SourceTitle "playchess.com"]
[Source "ChessBase"]
[SourceQuality "1"]
[TimeControl "40/5400+30:1800+30"]

1. e4 {[%emt 0:00:00]} g6 {[%emt 0:00:00]} 2. d4 {[%emt 0:00:00]} d6 {[%emt 0:00:00]} 3. Nf3 {[%emt 0:00:00]} a6 {[%emt 0:00:00]} 4. a4 {[%emt 0:00:06]} Bg7 {[%emt 0:00:03]} 5. Be2 {[%emt 0:00:30]} Nf6 {[%emt 0:05:02]} 6. Nc3 {[%emt 0:00:11]} O-O {[%emt 0:00:08]} 7. O-O {[%emt 0:00:02]} Nc6 {[%emt 0:01:10]} 8. d5 {[%emt 0:00:18]} Nb4 {[%emt 0:00:38]} 9. h3 {[%emt 0:02:37]} c6 {[%emt 0:03:27]} 10. a5 {[%emt 0:06:58]} e6 {[%emt 0:08:57]} 11. Ra4 {[%emt 0:07:39]} c5 {[%emt 0:04:29]} 12. Ne1 {[%emt 0:14:26]} Bd7 {[%emt 0:04:56]} 13. Ra1 {[%emt 0:03:35]} exd5 {[%emt 0:04:50]} 14. exd5 {[%emt 0:00:38]} Re8 {[%emt 0:00:47]} 15. Be3 {[%emt 0:01:58]} Qe7 {[%emt 0:02:15]} 16. Qd2 {[%emt 0:09:55]} Qf8 {[%emt 0:01:25]} 17. Kh1 {[%emt 0:11:14]} Rab8 {[%emt 0:00:43]} 18. Bf3 {[%emt 0:11:10]} Qe7 {[%emt 0:16:52]} 19. Bg5 {[%emt 0:08:06]} b6 {[%emt 0:14:56]} 20. axb6 {[%emt 0:11:49]} Rxb6 {[%emt 0:00:07]} 21. Na4 {[%emt 0:00:36]} Bxa4 {[%emt 0:04:17]} 22. Rxa4 {[%emt 0:00:01]} Ne4 {[%emt 0:02:34]} 23. Bxe4 {[%emt 0:00:10]} Qxe4 {[%emt 0:00:06]} 24. c3 {[%emt 0:00:49]} Qc4 {[%emt 0:00:08]} 25. Kg1 {[%emt 0:01:18]} Re2 {[%emt 0:04:16]} 26. Qd1 {[%emt 0:01:45]} Re5 {[%emt 0:02:08]} 27. Nf3 {[%emt 0:00:59]} Rxd5 {[%emt 0:00:23]} 28. Qe1 {[%emt 0:00:41]} Qb5 {[%emt 0:00:19]} 29. Rxb4 {[%emt 0:00:08]} cxb4 {[%emt 0:00:08]} 30. c4 {[%emt 0:00:02]} Qd7 {[%emt 0:06:24]} 31. cxd5 {[%emt 0:00:06]} Bxb2 {[%emt 0:00:06]} 32. Qe3 {[%emt 0:01:32]} Rb8 {[%emt 0:00:36]} 33. Qe2 {[%emt 0:00:19]} Bg7 {[%emt 0:01:46]} 34. Qxa6 {[%emt 0:00:37]} b3 35. Qd3 b2 {[%emt 0:00:52]} 36. Nd2 {[%emt 0:01:24]} Qb5 {[%emt 0:03:24]} 37. Qf3 {[%emt 0:03:04]} Ra8 {[%emt 0:05:02]} 38. Nb1 {[%emt 0:02:39]} Ra1 {[%emt 0:00:12]} 39. Qe4 {[%emt 0:00:53]} Be5 {[%emt 0:02:52]} 40. g3 {[%emt 0:01:11]} Ra4 {[%emt 0:03:01]} 41. Qc2 {[%emt 0:02:28]} Rc4 {[%emt 0:04:46]} 42. Qd3 {[%emt 0:01:11]} Qc5 {[%emt 0:01:01]} 43. Be3 {[%emt 0:00:20]} Qc8 {[%emt 0:00:06]} 44. Kg2 {[%emt 0:01:13]} h5 {[%emt 0:01:06]} 45. f4 {[%emt 0:03:42]} Bf6 {[%emt 0:00:56]} 46. Re1 {[%emt 0:01:43]} Rb4 {[%emt 0:03:46]} 47. Bf2 {[%emt 0:03:27]} h4 {[%emt 0:02:22]} 48. Re4 {[%emt 0:01:20]} Qf5 {[%emt 0:04:50]} 49. Re8+ {[%emt 0:00:05]} Kg7 {[%emt 0:00:03]} 50. Qxf5 {[%emt 0:01:33]} gxf5 {[%emt 0:01:53]} 51. Re1 {[%emt 0:04:49]} hxg3 {[%emt 0:01:17]} 52. Kxg3 {[%emt 0:00:44]} Kg6 {[%emt 0:01:32]} 53. Kf3 {[%emt 0:02:32]} Kh5 {[%emt 0:01:59]} 54. Be3 {[%emt 0:00:53]} Rb3 {[%emt 0:01:51]} 55. Rd1 {[%emt 0:00:58]} Kh4 {[%emt 0:00:29]} 56. Ke2 {[%emt 0:02:24]} Rb5 {[%emt 0:02:13]} 57. Rd3 {[%emt 0:01:06]} Rb4 {[%emt 0:00:34]} 58. Bd2 {[%emt 0:01:54]} Rb5 {[%emt 0:01:19]} 59. Be1+ {[%emt 0:02:57]} Kh5 {[%emt 0:00:07]} 60. Bc3 {[%emt 0:01:46]} Bxc3 {[%emt 0:01:23]} 61. Rxc3 Rxd5 {[%emt 0:00:09]} 62. Rb3 {[%emt 0:00:05]} Kh4 {[%emt 0:00:18]} 63. Rxb2 {[%emt 0:02:10]} Kxh3 {[%emt 0:00:44]} 64. Rd2 {[%emt 0:00:43]} Rb5 {[%emt 0:00:06]} 65. Nc3 {[%emt 0:00:07]} Rb3 {[%emt 0:00:19]} 66. Rd3+ {[%emt 0:00:37]} Kg4 {[%emt 0:00:16]} 67. Ke3 {[%emt 0:00:50]} Rb4 {[%emt 0:00:36]} 68. Nd5 {[%emt 0:01:03]} Re4+ {[%emt 0:00:07]} 69. Kf2 {[%emt 0:00:03]} Ra4 {[%emt 0:01:00]} 70. Rg3+ {[%emt 0:00:33]} Kh4 {[%emt 0:00:09]} 71. Rg5 {[%emt 0:01:03]} Rxf4+ {[%emt 0:00:36]} 72. Nxf4 {[%emt 0:00:07]} Kxg5 {[%emt 0:00:03]} 73. Kf3 {[%emt 0:00:41]} Kf6 {[%emt 0:00:08]} 74. Nd3 {[%emt 0:00:05]} d5 {[%emt 0:00:11]} 75. Kf4 {[%emt 0:00:55]} Ke6 {[%emt 0:00:48]} 76. Nc5+ {[%emt 0:00:12]} Kd6 {[%emt 0:00:10]} 77. Nb3 {[%emt 0:00:02]} Kc6 {[%emt 0:00:24]} 78. Nd4+ {[%emt 0:00:04]} Kc5 {Ke4} 1/2-1/2

[Event "9th Amsterdam Science Park A 2019"]
[Site "Amsterdam"]
[Date "2019.07.09"]
[Round "4.11"]
[White "Dimitrijeski, Kristian"]
[Black "Spit, Vincent"]
[Result "1-0"]
[ECO "A57"]
[WhiteElo "2186"]
[BlackElo "2005"]
[Annotator "NA"]
[PlyCount "65"]
[EventDate "2019.07.06"]
[EventType "swiss"]
[EventCountry "NED"]
[SourceTitle "playchess.com"]
[Source "ChessBase"]
[SourceQuality "1"]
[TimeControl "40/5400+30:1800+30"]

1. d4 {[%emt 0:00:00]} Nf6 {[%emt 0:00:00]} 2. c4 {[%emt 0:00:00]} c5 {[%emt 0:00:00]} 3. d5 {[%emt 0:00:00]} b5 {[%emt 0:00:02]} 4. cxb5 {[%emt 0:00:00]} a6 {[%emt 0:00:08]} 5. e3 {[%emt 0:00:00]} axb5 {[%emt 0:00:10]} 6. Bxb5 {[%emt 0:00:06]} Qa5+ {[%emt 0:00:34]} 7. Nc3 {[%emt 0:00:07]} Bb7 {[%emt 0:00:28]} 8. Bd2 {[%emt 0:01:32]} Qb6 {[%emt 0:00:10]} 9. Nf3 {[%emt 0:05:24]} Nxd5 {[%emt 0:01:07]} 10. a4 {[%emt 0:01:25]} e6 {[%emt 0:01:28]} 11. O-O {[%emt 0:02:10]} Be7 {[%emt 0:01:16]} 12. Nxd5 {[%emt 0:07:28]} Bxd5 {[%emt 0:02:41]} 13. Bc3 {[%emt 0:00:48]} O-O {[%emt 0:00:51]} 14. Ne5 {[%emt 0:07:41]} Bf6 {[%emt 0:06:23]} 15. Qg4 {[%emt 0:14:56]} Qd8 {[%emt 0:12:49]} 16. e4 {[%emt 0:02:31]} Bb7 {[%emt 0:01:54]} 17. Rfd1 {[%emt 0:07:49]} d5 {[%emt 0:01:56]} 18. exd5 {[%emt 0:01:12]} exd5 {[%emt 0:02:13]} 19. Nd3 {[%emt 0:01:46]} Bxc3 {[%emt 0:02:30]} 20. bxc3 {[%emt 0:00:28]} Qb6 {[%emt 0:06:26]} 21. Nf4 {[%emt 0:01:26]} Rd8 {[%emt 0:02:16]} 22. Qf5 {[%emt 0:04:37]} Nc6 {[%emt 0:05:57]} 23. Nxd5 {[%emt 0:02:49]} Rxd5 {[%emt 0:03:36]} 24. Qxd5 {[%emt 0:01:36]} Nd4 {[%emt 0:01:28]} 25. Qg5 {[%emt 0:02:05]} h6 {[%emt 0:01:17]} 26. Qg3 {[%emt 0:01:45]} Nf5 {[%emt 0:03:04]} 27. Qg4 {[%emt 0:01:14]} Qf6 {[%emt 0:01:38]} 28. Bd3 {[%emt 0:12:23]} Nh4 {[%emt 0:01:00]} 29. Bf1 {[%emt 0:01:02]} g5 {[%emt 0:03:20]} 30. Rab1 {[%emt 0:02:03]} Bc6 {[%emt 0:02:24]} 31. Rb6 {[%emt 0:01:12]} h5 {[%emt 0:01:43]} 32. Qxh5 {[%emt 0:01:46]} Rxa4 {[%emt 0:00:43]} 33. Rb8+ {[%emt 0:00:38]} 1-0